[Event "*** Titled Tuesday Blitz"]
[Site "Chess.com"]
[Date "2018.12.04"]
[Round "5"]
[White "Yurovskykh_Oleksandr"]
[Black "GulamaliRises"]
[Result "0-1"]
[WhiteElo "2484"]
[BlackElo "2660"]
[TimeControl "180+2"]
[EndTime "14:08:10 PST"]
[Termination "GulamaliRises won by checkmate"]

1. d4 {[%clk 0:03:01.9]} 1... Nf6 {[%clk 0:03:00.6]} 2. Bg5 {[%clk 0:03:02.9]}
2... d5 {[%clk 0:02:58.1]} 3. Bxf6 {[%clk 0:03:03.7]} 3... exf6 {[%clk
0:02:59.2]} 4. e3 {[%clk 0:03:04.6]} 4... c6 {[%clk 0:03:00.5]} 5. c4 {[%clk
0:03:04.4]} 5... dxc4 {[%clk 0:03:00.5]} 6. Bxc4 {[%clk 0:03:06.3]} 6... Bd6
{[%clk 0:03:01.8]} 7. Nc3 {[%clk 0:03:07.8]} 7... O-O {[%clk 0:03:03]} 8. Nf3
{[%clk 0:03:09.5]} 8... f5 {[%clk 0:03:04.4]} 9. O-O {[%clk 0:03:11.2]} 9... Nd7
{[%clk 0:03:05.7]} 10. Qe2 {[%clk 0:03:12.3]} 10... Nf6 {[%clk 0:03:06.7]} 11.
Rfd1 {[%clk 0:03:14]} 11... a6 {[%clk 0:03:06.2]} 12. d5 {[%clk 0:03:15.4]}
12... c5 {[%clk 0:03:06.5]} 13. a4 {[%clk 0:03:15.7]} 13... b6 {[%clk
0:03:06.2]} 14. g3 {[%clk 0:02:45.7]} 14... Re8 {[%clk 0:03:05.3]} 15. Qc2
{[%clk 0:02:17.2]} 15... g6 {[%clk 0:03:04.6]} 16. Bf1 {[%clk 0:01:47.1]} 16...
Nd7 {[%clk 0:02:27.5]} 17. Nd2 {[%clk 0:01:47.8]} 17... Ne5 {[%clk 0:02:28.4]}
18. Nc4 {[%clk 0:01:46.9]} 18... Nxc4 {[%clk 0:02:29.4]} 19. Bxc4 {[%clk
0:01:47.5]} 19... Bb7 {[%clk 0:02:14.1]} 20. Bf1 {[%clk 0:01:26.3]} 20... Qd7
{[%clk 0:02:08.5]} 21. b3 {[%clk 0:01:19.4]} 21... Be5 {[%clk 0:02:08.4]} 22.
Rac1 {[%clk 0:01:19]} 22... Red8 {[%clk 0:02:07.9]} 23. Bg2 {[%clk 0:01:12.1]}
23... Rac8 {[%clk 0:01:55.4]} 24. Nb1 {[%clk 0:01:08.1]} 24... b5 {[%clk
0:01:41.9]} 25. axb5 {[%clk 0:01:02.8]} 25... axb5 {[%clk 0:01:43.8]} 26. Na3
{[%clk 0:01:03.7]} 26... Bd6 {[%clk 0:01:26.6]} 27. Nb1 {[%clk 0:00:58.4]} 27...
c4 {[%clk 0:01:16.3]} 28. bxc4 {[%clk 0:00:58.3]} 28... Rxc4 {[%clk 0:01:18.2]}
29. Qb3 {[%clk 0:00:56.1]} 29... Rdc8 {[%clk 0:01:19]} 30. Rxc4 {[%clk
0:00:56.2]} 30... bxc4 {[%clk 0:01:20.9]} 31. Qc2 {[%clk 0:00:56]} 31... c3
{[%clk 0:01:17.4]} 32. Nxc3 {[%clk 0:00:19.5]} 32... Be5 {[%clk 0:01:18.5]} 33.
Qa4 {[%clk 0:00:20.1]} 33... Qd8 {[%clk 0:00:39.8]} 34. Nb5 {[%clk 0:00:16.2]}
34... Ra8 {[%clk 0:00:30.5]} 35. Qb4 {[%clk 0:00:13.9]} 35... Kg7 {[%clk
0:00:25.1]} 36. d6 {[%clk 0:00:10.8]} 36... Bxg2 {[%clk 0:00:25.5]} 37. Kxg2
{[%clk 0:00:11.7]} 37... Qb6 {[%clk 0:00:24.8]} 38. Qb1 {[%clk 0:00:12.8]} 38...
Rb8 {[%clk 0:00:20]} 39. Nc3 {[%clk 0:00:14]} 39... Qc6+ {[%clk 0:00:21]} 40.
Kg1 {[%clk 0:00:09.1]} 40... Rxb1 {[%clk 0:00:21.8]} 41. Nxb1 {[%clk 0:00:11]}
41... Qc2 {[%clk 0:00:22.7]} 42. Rf1 {[%clk 0:00:11]} 42... Bxd6 {[%clk
0:00:23]} 43. Kg2 {[%clk 0:00:12.7]} 43... g5 {[%clk 0:00:23.8]} 44. h3 {[%clk
0:00:14.2]} 44... h5 {[%clk 0:00:23.7]} 45. Kg1 {[%clk 0:00:13.5]} 45... h4
{[%clk 0:00:24.1]} 46. gxh4 {[%clk 0:00:14.9]} 46... g4 {[%clk 0:00:25.5]} 47.
hxg4 {[%clk 0:00:15.7]} 47... fxg4 {[%clk 0:00:27.4]} 48. Kg2 {[%clk 0:00:16.4]}
48... f5 {[%clk 0:00:28.4]} 49. h5 {[%clk 0:00:16.6]} 49... Kh6 {[%clk
0:00:29.6]} 50. Rh1 {[%clk 0:00:11.3]} 50... g3 {[%clk 0:00:30.2]} 51. Rf1
{[%clk 0:00:12.3]} 51... Kxh5 {[%clk 0:00:31.6]} 52. Kf3 {[%clk 0:00:12.9]}
52... Qe4+ {[%clk 0:00:30.2]} 53. Ke2 {[%clk 0:00:13.1]} 53... g2 {[%clk
0:00:31.6]} 54. Rg1 {[%clk 0:00:13.5]} 54... Bh2 {[%clk 0:00:22.8]} 55. Nd2
{[%clk 0:00:13.1]} 55... Bxg1 {[%clk 0:00:23.3]} 56. Nxe4 {[%clk 0:00:14.3]}
56... fxe4 {[%clk 0:00:25.2]} 57. f4 {[%clk 0:00:11.9]} 57... Bxe3 {[%clk
0:00:25.2]} 58. f5 {[%clk 0:00:12.1]} 58... g1=Q {[%clk 0:00:27.1]} 59. f6
{[%clk 0:00:14]} 59... Qg6 {[%clk 0:00:27.4]} 60. Kd1 {[%clk 0:00:15.9]} 60...
Qxf6 {[%clk 0:00:28.6]} 61. Ke2 {[%clk 0:00:17.4]} 61... Qf3+ {[%clk 0:00:29.4]}
62. Ke1 {[%clk 0:00:18.9]} 62... Qf2+ {[%clk 0:00:29.9]} 63. Kd1 {[%clk
0:00:20.8]} 63... Qd2# {[%clk 0:00:17.7]} 0-1

[Event "*** Titled Tuesday Blitz"]
[Site "Chess.com"]
[Date "2018.12.04"]
[Round "5"]
[White "SerGo055"]
[Black "GreatDamnedRedSpot"]
[Result "0-1"]
[WhiteElo "2435"]
[BlackElo "2332"]
[TimeControl "180+2"]
[EndTime "14:08:12 PST"]
[Termination "GreatDamnedRedSpot won by resignation"]

1. d4 {[%clk 0:03:01.9]} 1... c6 {[%clk 0:02:59.4]} 2. Nf3 {[%clk 0:03:02.9]}
2... Na6 {[%clk 0:03:00.4]} 3. e4 {[%clk 0:02:58.2]} 3... Nc7 {[%clk 0:03:01.7]}
4. Bd3 {[%clk 0:02:56.8]} 4... d5 {[%clk 0:03:03.1]} 5. e5 {[%clk 0:02:57.8]}
5... g6 {[%clk 0:03:04.4]} 6. h3 {[%clk 0:02:57.9]} 6... h5 {[%clk 0:03:05.6]}
7. O-O {[%clk 0:02:57.8]} 7... Bh6 {[%clk 0:03:06.8]} 8. c3 {[%clk 0:02:54]}
8... Ne6 {[%clk 0:03:07.7]} 9. Bxh6 {[%clk 0:02:52.9]} 9... Nxh6 {[%clk
0:03:08.2]} 10. Qd2 {[%clk 0:02:51.6]} 10... Kf8 {[%clk 0:03:08.1]} 11. Na3
{[%clk 0:02:47.7]} 11... Ng7 {[%clk 0:03:08.3]} 12. Nc2 {[%clk 0:02:47.8]} 12...
Bf5 {[%clk 0:03:07.4]} 13. Ne3 {[%clk 0:02:47.4]} 13... Bxd3 {[%clk 0:03:07.4]}
14. Qxd3 {[%clk 0:02:48.3]} 14... e6 {[%clk 0:02:52.8]} 15. g3 {[%clk
0:02:39.2]} 15... Ngf5 {[%clk 0:02:44.9]} 16. Ng2 {[%clk 0:02:37.1]} 16... Kg7
{[%clk 0:02:43.6]} 17. Nfh4 {[%clk 0:02:14.8]} 17... Qe7 {[%clk 0:02:38.3]} 18.
b4 {[%clk 0:01:51.8]} 18... a5 {[%clk 0:02:38.3]} 19. a3 {[%clk 0:01:52.1]}
19... Ra7 {[%clk 0:02:39.2]} 20. f4 {[%clk 0:01:42]} 20... Nxh4 {[%clk
0:01:50.1]} 21. Nxh4 {[%clk 0:01:38.8]} 21... Rha8 {[%clk 0:01:30.3]} 22. Rae1
{[%clk 0:01:06.7]} 22... axb4 {[%clk 0:01:30.1]} 23. axb4 {[%clk 0:01:07.5]}
23... Nf5 {[%clk 0:01:03.9]} 24. Nxf5+ {[%clk 0:01:04.3]} 24... gxf5 {[%clk
0:01:04.9]} 25. Qf3 {[%clk 0:01:03.2]} 25... Kg6 {[%clk 0:01:00.5]} 26. Re2
{[%clk 0:01:03.2]} 26... Ra2 {[%clk 0:00:52]} 27. g4 {[%clk 0:01:00.7]} 27...
hxg4 {[%clk 0:00:48.9]} 28. hxg4 {[%clk 0:01:01.2]} 28... Qh4 {[%clk 0:00:11.9]}
29. gxf5+ {[%clk 0:00:58.9]} 29... Kxf5 {[%clk 0:00:13.1]} 30. Qd3+ {[%clk
0:00:52.1]} 30... Kg4 {[%clk 0:00:14.3]} 31. Qd1 {[%clk 0:00:39]} 31... Rxe2
{[%clk 0:00:11.5]} 32. Qxe2+ {[%clk 0:00:39.4]} 32... Kf5 {[%clk 0:00:12.5]} 33.
Qd3+ {[%clk 0:00:40.5]} 33... Kg4 {[%clk 0:00:13.7]} 34. f5 {[%clk 0:00:23.2]}
34... Qg3+ {[%clk 0:00:12.5]} 35. Qxg3+ {[%clk 0:00:23.2]} 35... Kxg3 {[%clk
0:00:14.4]} 36. fxe6 {[%clk 0:00:23]} 36... fxe6 {[%clk 0:00:16.3]} 37. Rc1
{[%clk 0:00:13.2]} 37... Kf3 {[%clk 0:00:13.1]} 38. Rf1+ {[%clk 0:00:14.2]}
38... Ke3 {[%clk 0:00:13.9]} 39. Rf6 {[%clk 0:00:14.6]} 39... Re8 {[%clk
0:00:14.8]} 40. Rf7 {[%clk 0:00:14.2]} 40... Kd3 {[%clk 0:00:16.1]} 41. Rxb7
{[%clk 0:00:14.9]} 41... Kxc3 {[%clk 0:00:17.7]} 42. Rc7 {[%clk 0:00:16.3]}
42... Kxd4 {[%clk 0:00:19.2]} 43. Rxc6 {[%clk 0:00:17.4]} 43... Kxe5 {[%clk
0:00:19.9]} 44. b5 {[%clk 0:00:19]} 44... Rb8 {[%clk 0:00:21]} 45. b6 {[%clk
0:00:19.6]} 45... d4 {[%clk 0:00:22.4]} 46. Rc5+ {[%clk 0:00:16.6]} 46... Kd6
{[%clk 0:00:23.6]} 47. Rb5 {[%clk 0:00:16.7]} 47... Kc6 {[%clk 0:00:25]} 48. Rb4
{[%clk 0:00:17]} 48... e5 {[%clk 0:00:25.3]} 49. Rc4+ {[%clk 0:00:17.9]} 49...
Kxb6 {[%clk 0:00:25.9]} 50. Kf2 {[%clk 0:00:19.4]} 50... Kb5 {[%clk 0:00:26.5]}
51. Rc1 {[%clk 0:00:19.3]} 51... Rh8 {[%clk 0:00:24.7]} 52. Kf3 {[%clk
0:00:20.2]} 52... Rh4 {[%clk 0:00:25.8]} 53. Rc8 {[%clk 0:00:17]} 53... e4+
{[%clk 0:00:25.8]} 54. Kg3 {[%clk 0:00:18.3]} 54... Rh7 {[%clk 0:00:25.4]} 55.
Kf4 {[%clk 0:00:19.2]} 55... Re7 {[%clk 0:00:26.9]} 56. Kg3 {[%clk 0:00:16]}
56... e3 {[%clk 0:00:27.7]} 57. Rc1 {[%clk 0:00:16.2]} 57... e2 {[%clk
0:00:27.5]} 58. Kf2 {[%clk 0:00:17.2]} 58... Kb4 {[%clk 0:00:20.1]} 59. Ke1
{[%clk 0:00:16.7]} 59... Kb3 {[%clk 0:00:18.7]} 60. Kd2 {[%clk 0:00:17.6]} 60...
e1=Q+ {[%clk 0:00:19]} 61. Rxe1 {[%clk 0:00:17.6]} 61... Rxe1 {[%clk 0:00:20.9]}
62. Kxe1 {[%clk 0:00:18.8]} 62... Kc2 {[%clk 0:00:22.6]} 63. Ke2 {[%clk
0:00:19.9]} 63... d3+ {[%clk 0:00:24.2]} 0-1

[Event "*** Titled Tuesday Blitz"]
[Site "Chess.com"]
[Date "2018.12.04"]
[Round "5"]
[White "Gr3egor"]
[Black "schoolmeester"]
[Result "0-1"]
[WhiteElo "2506"]
[BlackElo "2753"]
[TimeControl "180+2"]
[EndTime "14:08:15 PST"]
[Termination "schoolmeester won by resignation"]

1. d4 {[%clk 0:03:01.9]} 1... f5 {[%clk 0:02:59.2]} 2. g3 {[%clk 0:03:01.3]}
2... Nf6 {[%clk 0:02:59.3]} 3. Bg2 {[%clk 0:03:02.6]} 3... g6 {[%clk 0:02:58.6]}
4. Nh3 {[%clk 0:03:02.7]} 4... Bg7 {[%clk 0:02:58.4]} 5. Nf4 {[%clk 0:03:03.9]}
5... d6 {[%clk 0:02:52]} 6. d5 {[%clk 0:03:02.5]} 6... Na6 {[%clk 0:02:42.5]} 7.
h4 {[%clk 0:03:01]} 7... e5 {[%clk 0:02:30.1]} 8. dxe6 {[%clk 0:03:01.7]} 8...
Nc5 {[%clk 0:02:29.8]} 9. h5 {[%clk 0:03:00.4]} 9... Nxe6 {[%clk 0:02:16.1]} 10.
h6 {[%clk 0:02:51.2]} 10... Nxf4 {[%clk 0:02:07.1]} 11. Bxf4 {[%clk 0:02:49.1]}
11... Bf8 {[%clk 0:02:07.7]} 12. Nc3 {[%clk 0:02:49.4]} 12... Be7 {[%clk
0:01:57]} 13. Nd5 {[%clk 0:02:47.8]} 13... O-O {[%clk 0:01:50.7]} 14. Nxe7+
{[%clk 0:02:48.4]} 14... Qxe7 {[%clk 0:01:51.4]} 15. Qd4 {[%clk 0:02:50.1]}
15... Be6 {[%clk 0:01:26.2]} 16. O-O-O {[%clk 0:02:47.7]} 16... Rad8 {[%clk
0:01:17.7]} 17. Kb1 {[%clk 0:02:33.3]} 17... b6 {[%clk 0:01:17.4]} 18. Bg5
{[%clk 0:02:22.7]} 18... c5 {[%clk 0:01:15.3]} 19. Qc3 {[%clk 0:02:22.9]} 19...
Qf7 {[%clk 0:01:12.2]} 20. b3 {[%clk 0:02:18.4]} 20... Rd7 {[%clk 0:01:08]} 21.
f3 {[%clk 0:02:15.3]} 21... d5 {[%clk 0:01:05.5]} 22. e3 {[%clk 0:01:53]} 22...
Ne8 {[%clk 0:00:53.5]} 23. Rd2 {[%clk 0:01:22]} 23... Nd6 {[%clk 0:00:50.5]} 24.
Rhd1 {[%clk 0:01:13]} 24... d4 {[%clk 0:00:50]} 25. exd4 {[%clk 0:01:10.3]}
25... Nb5 {[%clk 0:00:50.9]} 26. Qe3 {[%clk 0:01:10.8]} 26... cxd4 {[%clk
0:00:49.2]} 27. Rxd4 {[%clk 0:01:12.1]} 27... Nxd4 {[%clk 0:00:49.9]} 28. Rxd4
{[%clk 0:01:14]} 28... Rxd4 {[%clk 0:00:50.9]} 29. Qxd4 {[%clk 0:01:15.9]} 29...
Qd7 {[%clk 0:00:50.6]} 30. Qe5 {[%clk 0:01:15.9]} 30... Rc8 {[%clk 0:00:42.7]}
31. Kb2 {[%clk 0:01:09.6]} 31... Kf8 {[%clk 0:00:28]} 32. f4 {[%clk 0:00:57.2]}
32... Kg8 {[%clk 0:00:26.8]} 33. Bf3 {[%clk 0:00:35.3]} 33... Re8 {[%clk
0:00:25.5]} 34. Qc3 {[%clk 0:00:34.1]} 34... Rc8 {[%clk 0:00:18.9]} 35. Qe5
{[%clk 0:00:35]} 35... Re8 {[%clk 0:00:19.3]} 36. Qc3 {[%clk 0:00:34.9]} 36...
Rc8 {[%clk 0:00:19.8]} 37. Qf6 {[%clk 0:00:34.2]} 37... Qf7 {[%clk 0:00:19.4]}
38. Qe5 {[%clk 0:00:33.6]} 38... Re8 {[%clk 0:00:20.4]} 39. Qd6 {[%clk
0:00:30.7]} 39... Qd7 {[%clk 0:00:19.2]} 40. Qb4 {[%clk 0:00:26.1]} 40... Rc8
{[%clk 0:00:19.5]} 41. c4 {[%clk 0:00:23.3]} 41... Qd4+ {[%clk 0:00:19.9]} 42.
Ka3 {[%clk 0:00:15.2]} 42... Rc5 {[%clk 0:00:19.9]} 43. Qe1 {[%clk 0:00:05.1]}
43... Ra5+ {[%clk 0:00:20.6]} 44. Kb4 {[%clk 0:00:06.5]} 44... Qd6+ {[%clk
0:00:20]} 45. Kc3 {[%clk 0:00:07.6]} 45... Rxa2 {[%clk 0:00:20.9]} 46. Bd5
{[%clk 0:00:08.7]} 46... Kf7 {[%clk 0:00:20.2]} 47. Qb1 {[%clk 0:00:05.6]} 47...
Rh2 {[%clk 0:00:19.2]} 48. Qd3 {[%clk 0:00:06.1]} 48... Bxd5 {[%clk 0:00:19.1]}
49. cxd5 {[%clk 0:00:07.6]} 49... Qc5+ {[%clk 0:00:20.1]} 50. Qc4 {[%clk
0:00:08.2]} 50... Rg2 {[%clk 0:00:19.9]} 51. Qxc5 {[%clk 0:00:07.9]} 51... bxc5
{[%clk 0:00:21.8]} 52. Kc4 {[%clk 0:00:09.5]} 52... Ke8 {[%clk 0:00:21.2]} 53.
Kxc5 {[%clk 0:00:10]} 53... Kd7 {[%clk 0:00:23.1]} 54. b4 {[%clk 0:00:10.9]}
54... Rxg3 {[%clk 0:00:23.9]} 55. b5 {[%clk 0:00:11.9]} 55... Rb3 {[%clk
0:00:24.7]} 56. Bf6 {[%clk 0:00:12.4]} 56... Rb1 {[%clk 0:00:24.5]} 57. Be5
{[%clk 0:00:13.1]} 57... Rc1+ {[%clk 0:00:24.9]} 58. Kb4 {[%clk 0:00:14.6]}
58... Re1 {[%clk 0:00:25.9]} 59. Kc5 {[%clk 0:00:16.1]} 59... g5 {[%clk
0:00:26.9]} 60. Bb8 {[%clk 0:00:16]} 60... g4 {[%clk 0:00:22.5]} 61. Bxa7 {[%clk
0:00:17.3]} 61... g3 {[%clk 0:00:24]} 62. Kc4 {[%clk 0:00:18.6]} 62... g2 {[%clk
0:00:24.5]} 63. Bf2 {[%clk 0:00:19.4]} 63... g1=Q {[%clk 0:00:25.1]} 64. Bxg1
{[%clk 0:00:20.9]} 64... Rxg1 {[%clk 0:00:26.7]} 0-1

[Event "*** Titled Tuesday Blitz"]
[Site "Chess.com"]
[Date "2018.12.04"]
[Round "5"]
[White "Bryakin_Mikhail"]
[Black "VincentBlom"]
[Result "1-0"]
[WhiteElo "2725"]
[BlackElo "2503"]
[TimeControl "180+2"]
[EndTime "14:08:16 PST"]
[Termination "Bryakin_Mikhail won by resignation"]

1. d4 {[%clk 0:02:59.9]} 1... Nf6 {[%clk 0:02:59.7]} 2. c4 {[%clk 0:02:59.9]}
2... b6 {[%clk 0:02:56.9]} 3. Nf3 {[%clk 0:02:52.7]} 3... Bb7 {[%clk 0:02:57.8]}
4. g3 {[%clk 0:02:54.2]} 4... g6 {[%clk 0:02:58.4]} 5. Bg2 {[%clk 0:02:55.3]}
5... Bg7 {[%clk 0:03:00.1]} 6. O-O {[%clk 0:02:56.5]} 6... O-O {[%clk
0:03:00.3]} 7. Nc3 {[%clk 0:02:55]} 7... Ne4 {[%clk 0:03:01.5]} 8. Bd2 {[%clk
0:02:45.8]} 8... d6 {[%clk 0:02:55.2]} 9. Nxe4 {[%clk 0:02:46.3]} 9... Bxe4
{[%clk 0:02:55.7]} 10. Bc3 {[%clk 0:02:47.8]} 10... c5 {[%clk 0:02:52.8]} 11.
Qd2 {[%clk 0:02:40.6]} 11... Nc6 {[%clk 0:02:48]} 12. d5 {[%clk 0:02:36]} 12...
Bxf3 {[%clk 0:02:44.9]} 13. Bxf3 {[%clk 0:01:52.9]} 13... Ne5 {[%clk 0:02:07]}
14. b3 {[%clk 0:01:52.3]} 14... a6 {[%clk 0:01:26.5]} 15. Bg2 {[%clk 0:01:28.6]}
15... b5 {[%clk 0:01:26.9]} 16. f4 {[%clk 0:01:24.5]} 16... Ng4 {[%clk
0:01:20.2]} 17. Bxg7 {[%clk 0:01:13.9]} 17... Kxg7 {[%clk 0:01:22.1]} 18. e4
{[%clk 0:01:10.5]} 18... f6 {[%clk 0:01:04.4]} 19. Bh3 {[%clk 0:01:05.9]} 19...
Nh6 {[%clk 0:01:03.1]} 20. Be6 {[%clk 0:01:07.4]} 20... a5 {[%clk 0:00:51.1]}
21. cxb5 {[%clk 0:00:57.1]} 21... a4 {[%clk 0:00:51.1]} 22. b4 {[%clk
0:00:50.7]} 22... Qb6 {[%clk 0:00:50.9]} 23. Qe3 {[%clk 0:00:41.8]} 23... Qxb5
{[%clk 0:00:44.4]} 24. bxc5 {[%clk 0:00:42.4]} 24... dxc5 {[%clk 0:00:38.6]} 25.
Rfc1 {[%clk 0:00:38.3]} 25... Qb2 {[%clk 0:00:17.1]} 26. Qxc5 {[%clk 0:00:24.6]}
26... Kh8 {[%clk 0:00:18.1]} 27. Qc3 {[%clk 0:00:16.7]} 27... a3 {[%clk
0:00:12.9]} 28. Rc2 {[%clk 0:00:07.9]} 28... Qb6+ {[%clk 0:00:13.5]} 29. Qc5
{[%clk 0:00:08.5]} 29... Qb7 {[%clk 0:00:11.9]} 30. Rac1 {[%clk 0:00:08.9]}
30... Qa7 {[%clk 0:00:09.5]} 31. Qxa7 {[%clk 0:00:09.5]} 31... Rxa7 {[%clk
0:00:11.4]} 32. Rc7 {[%clk 0:00:08.6]} 32... Rfa8 {[%clk 0:00:12]} 33. Rxa7
{[%clk 0:00:06.5]} 33... Rxa7 {[%clk 0:00:13.9]} 34. Rc3 {[%clk 0:00:08.3]}
34... Kg7 {[%clk 0:00:14.9]} 35. Kf2 {[%clk 0:00:09.4]} 35... Nf7 {[%clk
0:00:15.7]} 36. Bxf7 {[%clk 0:00:08.7]} 36... Kxf7 {[%clk 0:00:17.6]} 37. Ke3
{[%clk 0:00:10.3]} 37... Rb7 {[%clk 0:00:18.2]} 38. Rxa3 {[%clk 0:00:10.9]}
38... Rb2 {[%clk 0:00:19.8]} 39. h4 {[%clk 0:00:12.1]} 39... Rg2 {[%clk
0:00:20.6]} 40. Kd4 {[%clk 0:00:13.5]} 40... h6 {[%clk 0:00:20.3]} 41. e5 {[%clk
0:00:12.6]} 41... fxe5+ {[%clk 0:00:21.1]} 42. fxe5 {[%clk 0:00:14.5]} 42... g5
{[%clk 0:00:22.8]} 43. hxg5 {[%clk 0:00:14.6]} 43... hxg5 {[%clk 0:00:24.7]} 44.
Rf3+ {[%clk 0:00:15.6]} 44... Ke8 {[%clk 0:00:25.8]} 45. a3 {[%clk 0:00:16.5]}
45... Rd2+ {[%clk 0:00:26.5]} 46. Rd3 {[%clk 0:00:17.2]} 46... Re2 {[%clk
0:00:26.8]} 47. Re3 {[%clk 0:00:17.6]} 47... Rd2+ {[%clk 0:00:27.8]} 48. Ke4
{[%clk 0:00:19.1]} 48... Kd7 {[%clk 0:00:27.7]} 49. Rb3 {[%clk 0:00:20.1]} 49...
Re2+ {[%clk 0:00:27.6]} 50. Kf5 {[%clk 0:00:21.1]} 50... Rf2+ {[%clk 0:00:27.7]}
51. Kxg5 {[%clk 0:00:21.9]} 51... Rd2 {[%clk 0:00:29.3]} 52. Rb7+ {[%clk
0:00:20.8]} 52... Kd8 {[%clk 0:00:30.2]} 53. Kf5 {[%clk 0:00:16.1]} 53... Rxd5
{[%clk 0:00:26.5]} 54. Ke6 {[%clk 0:00:17.2]} 54... Rd3 {[%clk 0:00:28]} 55. a4
{[%clk 0:00:11.4]} 55... Rxg3 {[%clk 0:00:26.8]} 56. Rd7+ {[%clk 0:00:11.8]}
56... Kc8 {[%clk 0:00:28.1]} 57. Rxe7 {[%clk 0:00:12.8]} 57... Ra3 {[%clk
0:00:29]} 58. Ra7 {[%clk 0:00:09.5]} 58... Kb8 {[%clk 0:00:29.8]} 59. Ra5 {[%clk
0:00:10.4]} 59... Kc7 {[%clk 0:00:31.4]} 60. Rc5+ {[%clk 0:00:08.8]} 60... Kb6
{[%clk 0:00:31.9]} 61. Rc4 {[%clk 0:00:08.4]} 61... Kb7 {[%clk 0:00:32.8]} 62.
Ke7 {[%clk 0:00:08.5]} 62... Rxa4 {[%clk 0:00:31.6]} 63. Rxa4 {[%clk 0:00:08.5]}
1-0

[Event "*** Titled Tuesday Blitz"]
[Site "Chess.com"]
[Date "2018.12.04"]
[Round "5"]
[White "bubacik"]
[Black "TigranLPetrosyan"]
[Result "1/2-1/2"]
[WhiteElo "2675"]
[BlackElo "2811"]
[TimeControl "180+2"]
[EndTime "14:08:20 PST"]
[Termination "Game drawn - insufficient material"]

1. d4 {[%clk 0:02:56.4]} 1... g6 {[%clk 0:03:01.9]} 2. Nf3 {[%clk 0:02:56.3]}
2... Bg7 {[%clk 0:03:00.6]} 3. Nc3 {[%clk 0:02:50.4]} 3... d6 {[%clk 0:03:01.3]}
4. e4 {[%clk 0:02:49.3]} 4... a6 {[%clk 0:02:58.1]} 5. Bg5 {[%clk 0:02:09.6]}
5... b5 {[%clk 0:02:52.7]} 6. Bd3 {[%clk 0:02:09.9]} 6... Nd7 {[%clk 0:02:42.4]}
7. Qe2 {[%clk 0:01:48.6]} 7... c5 {[%clk 0:02:28.9]} 8. e5 {[%clk 0:01:04.1]}
8... cxd4 {[%clk 0:02:16.3]} 9. Nxd4 {[%clk 0:00:51.6]} 9... Nxe5 {[%clk
0:02:15.6]} 10. Be4 {[%clk 0:00:49.4]} 10... Rb8 {[%clk 0:01:45.7]} 11. O-O-O
{[%clk 0:00:49.8]} 11... Bd7 {[%clk 0:01:35.2]} 12. f4 {[%clk 0:00:50.6]} 12...
Nc4 {[%clk 0:01:28.4]} 13. Nc6 {[%clk 0:00:51.3]} 13... Bxc6 {[%clk 0:01:25.6]}
14. Bxc6+ {[%clk 0:00:53.2]} 14... Kf8 {[%clk 0:01:27.5]} 15. Nd5 {[%clk
0:00:10.2]} 15... Nf6 {[%clk 0:01:21.5]} 16. Nxf6 {[%clk 0:00:09.1]} 16... Bxf6
{[%clk 0:01:23.4]} 17. Bxf6 {[%clk 0:00:10.4]} 17... exf6 {[%clk 0:01:22.6]} 18.
Bd5 {[%clk 0:00:11.8]} 18... Nb6 {[%clk 0:01:20.4]} 19. Rhe1 {[%clk 0:00:12.2]}
19... Kg7 {[%clk 0:01:19.3]} 20. Qe7 {[%clk 0:00:11.4]} 20... Nxd5 {[%clk
0:01:12.5]} 21. Qxd8 {[%clk 0:00:10]} 21... Rhxd8 {[%clk 0:01:14.4]} 22. Rxd5
{[%clk 0:00:11.5]} 22... Kf8 {[%clk 0:01:12.2]} 23. b3 {[%clk 0:00:10.7]} 23...
Rbc8 {[%clk 0:01:13]} 24. Kb2 {[%clk 0:00:11.7]} 24... Rc5 {[%clk 0:01:09.9]}
25. Rd3 {[%clk 0:00:09.4]} 25... Rdc8 {[%clk 0:00:57.2]} 26. Re2 {[%clk
0:00:10.2]} 26... R8c6 {[%clk 0:00:48.7]} 27. g3 {[%clk 0:00:11.2]} 27... h5
{[%clk 0:00:47.3]} 28. Rde3 {[%clk 0:00:10.7]} 28... Kg7 {[%clk 0:00:45.3]} 29.
a3 {[%clk 0:00:11.1]} 29... h4 {[%clk 0:00:42.1]} 30. Rd3 {[%clk 0:00:09.2]}
30... g5 {[%clk 0:00:37.9]} 31. fxg5 {[%clk 0:00:09.6]} 31... fxg5 {[%clk
0:00:39.8]} 32. Red2 {[%clk 0:00:11]} 32... hxg3 {[%clk 0:00:36.2]} 33. hxg3
{[%clk 0:00:12]} 33... f5 {[%clk 0:00:36.1]} 34. Kb1 {[%clk 0:00:09.6]} 34...
Rc3 {[%clk 0:00:35.8]} 35. Kc1 {[%clk 0:00:06.1]} 35... Rxd3 {[%clk 0:00:34.1]}
36. Rxd3 {[%clk 0:00:08]} 36... Kf6 {[%clk 0:00:35.6]} 37. Kd2 {[%clk
0:00:09.6]} 37... Ke5 {[%clk 0:00:36.5]} 38. Re3+ {[%clk 0:00:11.1]} 38... Kd5
{[%clk 0:00:37.4]} 39. Re8 {[%clk 0:00:10.7]} 39... Rc7 {[%clk 0:00:34.3]} 40.
Rg8 {[%clk 0:00:11.3]} 40... g4 {[%clk 0:00:27.9]} 41. Re8 {[%clk 0:00:12.3]}
41... Rh7 {[%clk 0:00:27.8]} 42. Ke3 {[%clk 0:00:09.5]} 42... Rh2 {[%clk
0:00:28.3]} 43. Rc8 {[%clk 0:00:10]} 43... Rg2 {[%clk 0:00:29.1]} 44. Kf4 {[%clk
0:00:11.3]} 44... Rf2+ {[%clk 0:00:28.2]} 45. Kg5 {[%clk 0:00:11.8]} 45... Rf3
{[%clk 0:00:30.1]} 46. Kh4 {[%clk 0:00:12.4]} 46... a5 {[%clk 0:00:26.6]} 47. a4
{[%clk 0:00:10.2]} 47... bxa4 {[%clk 0:00:26.1]} 48. bxa4 {[%clk 0:00:11.4]}
48... Ra3 {[%clk 0:00:27.3]} 49. Rf8 {[%clk 0:00:12.7]} 49... Ke4 {[%clk
0:00:28.1]} 50. Kg5 {[%clk 0:00:12.1]} 50... Rxa4 {[%clk 0:00:19]} 51. Rxf5
{[%clk 0:00:13.3]} 51... Ke3 {[%clk 0:00:20.5]} 52. Rd5 {[%clk 0:00:14]} 52...
Kf3 {[%clk 0:00:19.9]} 53. Kh4 {[%clk 0:00:13.3]} 53... Ra1 {[%clk 0:00:19]} 54.
Rd3+ {[%clk 0:00:14.2]} 54... Ke4 {[%clk 0:00:20.4]} 55. Rxd6 {[%clk 0:00:16.1]}
55... a4 {[%clk 0:00:20]} 56. Kxg4 {[%clk 0:00:17]} 56... a3 {[%clk 0:00:21.9]}
57. Ra6 {[%clk 0:00:17.9]} 57... a2 {[%clk 0:00:23.8]} 58. Kg5 {[%clk
0:00:17.4]} 58... Kd4 {[%clk 0:00:20.2]} 59. g4 {[%clk 0:00:18.1]} 59... Kc3
{[%clk 0:00:22.1]} 60. Kg6 {[%clk 0:00:18.2]} 60... Kxc2 {[%clk 0:00:21.1]} 61.
g5 {[%clk 0:00:19.2]} 61... Kb3 {[%clk 0:00:23]} 62. Kg7 {[%clk 0:00:19.3]}
62... Rg1 {[%clk 0:00:21.9]} 63. g6 {[%clk 0:00:20.5]} 63... a1=Q+ {[%clk
0:00:23.5]} 64. Rxa1 {[%clk 0:00:21.8]} 64... Rxa1 {[%clk 0:00:25.1]} 65. Kf7
{[%clk 0:00:22.5]} 65... Ra7+ {[%clk 0:00:27]} 66. Kf8 {[%clk 0:00:23.8]} 66...
Rb7 {[%clk 0:00:23.3]} 67. g7 {[%clk 0:00:25.1]} 67... Rxg7 {[%clk 0:00:24.4]}
68. Kxg7 {[%clk 0:00:26.3]} 1/2-1/2